[Event "Titled Tuesday Blitz September 27 Early 2022"]
[White "Averjanov, Alexey"]
[Black "Svane, Frederik"]
[WhiteFideId "14109867"]
[BlackFideId "12923044"]
[WhiteElo "2655"]
[BlackElo "2818"]
[Result "0-1"]
[Round "07"]
[TimeControl "180+1"]
[Date "2022.09.27"]
[WhiteClock "0:00:17"]
[BlackClock "0:00:07"]

1. d4 {[%clk 0:03:00]}  Nf6 {[%clk 0:02:57]} 2. c4 {[%clk 0:03:01]}  e6 {[%clk 0:02:56]} 3. Nf3 {[%clk 0:03:01]}  b6 {[%clk 0:02:56]} 4. g3 {[%clk 0:03:01]}  Bb4+ {[%clk 0:02:56]} 5. Nbd2 {[%clk 0:03:01]}  O-O {[%clk 0:02:53]} 6. Bg2 {[%clk 0:03:01]}  d5 {[%clk 0:02:54]} 7. O-O {[%clk 0:03:00]}  Bb7 {[%clk 0:02:53]} 8. b3 {[%clk 0:03:01]}  Re8 {[%clk 0:02:49]} 9. Bb2 {[%clk 0:03:01]}  Nbd7 {[%clk 0:02:49]} 10. Rc1 {[%clk 0:03:00]}  Rc8 {[%clk 0:02:50]} 11. e3 {[%clk 0:03:00]}  c5 {[%clk 0:02:48]} 12. Qe2 {[%clk 0:03:00]}  dxc4 {[%clk 0:02:34]} 13. Nxc4 {[%clk 0:03:00]}  cxd4 {[%clk 0:02:31]} 14. Nxd4 {[%clk 0:03:00]}  Bxg2 {[%clk 0:02:31]} 15. Kxg2 {[%clk 0:03:01]}  Qe7 {[%clk 0:02:04]} 16. Rfd1 {[%clk 0:03:00]}  Red8 {[%clk 0:01:56]} 17. a3 {[%clk 0:02:56]}  Bc5 {[%clk 0:01:53]} 18. b4 {[%clk 0:02:55]}  Bxd4 {[%clk 0:01:53]} 19. Bxd4 {[%clk 0:02:56]}  h5 {[%clk 0:01:36]} 20. h4 {[%clk 0:02:50]}  e5 {[%clk 0:01:30]} 21. Ba1 {[%clk 0:02:50]}  Qe6 {[%clk 0:01:30]} 22. Kg1 {[%clk 0:02:01]}  e4 {[%clk 0:01:26]} 23. Kg2 {[%clk 0:01:44]}  Rc6 {[%clk 0:01:20]} 24. b5 {[%clk 0:01:16]}  Rc5 {[%clk 0:01:20]} 25. Rd6 {[%clk 0:01:12]}  Qxd6 {[%clk 0:00:59]} 26. Nxd6 {[%clk 0:01:11]}  Rxc1 {[%clk 0:01:00]} 27. Qa2 {[%clk 0:01:03]}  Rf8 {[%clk 0:00:53]} 28. Bd4 {[%clk 0:01:03]}  Rc7 {[%clk 0:00:28]} 29. a4 {[%clk 0:01:00]}  Nc5 {[%clk 0:00:20]} 30. Bxf6 {[%clk 0:00:46]}  gxf6 {[%clk 0:00:21]} 31. a5 {[%clk 0:00:46]}  Rd8 {[%clk 0:00:19]} 32. Nf5 {[%clk 0:00:44]}  Kh7 {[%clk 0:00:15]} 33. axb6 {[%clk 0:00:43]}  axb6 {[%clk 0:00:16]} 34. Qa1 {[%clk 0:00:38]}  Kg6 {[%clk 0:00:16]} 35. Nd4 {[%clk 0:00:37]}  Ne6 {[%clk 0:00:12]} 36. Nxe6 {[%clk 0:00:26]}  fxe6 {[%clk 0:00:13]} 37. Qa6 {[%clk 0:00:25]}  Rc2 {[%clk 0:00:08]} 38. Qxb6 {[%clk 0:00:22]}  Rdd2 {[%clk 0:00:08]} 39. Qxe6 {[%clk 0:00:21]}  Rxf2+ {[%clk 0:00:08]} 40. Kg1 {[%clk 0:00:21]}  Rfd2 {[%clk 0:00:05]} 41. Qxe4+ {[%clk 0:00:18]}  Kf7 {[%clk 0:00:05]} 42. Qb7+ {[%clk 0:00:16]}  Ke6 {[%clk 0:00:05]} 43. Qe4+ {[%clk 0:00:16]}  Kd6 {[%clk 0:00:05]} 44. Qb4+ {[%clk 0:00:15]}  Kd5 {[%clk 0:00:03]} 45. Qb1 {[%clk 0:00:15]}  Rg2+ {[%clk 0:00:02]} 46. Kh1 {[%clk 0:00:14]}  Rh2+ {[%clk 0:00:03]} 47. Kg1 {[%clk 0:00:14]}  Rcg2+ {[%clk 0:00:03]} 48. Kf1 {[%clk 0:00:15]}  Rh1+ {[%clk 0:00:04]} 49. Kxg2 {[%clk 0:00:15]}  Rxb1 {[%clk 0:00:05]} 50. Kf3 {[%clk 0:00:16]}  Rxb5 {[%clk 0:00:05]} 51. Kf4 {[%clk 0:00:16]}  Ke6 {[%clk 0:00:06]} 52. e4 {[%clk 0:00:16]}  Rb1 {[%clk 0:00:07]} 53. g4 {[%clk 0:00:17]}  Rf1+ {[%clk 0:00:07]} 54. Kg3 {[%clk 0:00:17]}  Rg1+ {[%clk 0:00:07]} 0-1


[Site "https://www.chess.com"]

[Event "Titled Tuesday Blitz September 27 Early 2022"]
[White "Azadaliyev, Jahandar"]
[Black "Maung, Maung Kyaw Zaw Hein"]
[WhiteFideId "13425811"]
[BlackFideId "13001698"]
[WhiteElo "1810"]
[BlackElo "1785"]
[Result "0-1"]
[Round "07"]
[TimeControl "180+1"]
[Date "2022.09.27"]
[WhiteClock "0:00:04"]
[BlackClock "0:01:19"]

1. e4 {[%clk 0:03:00]}  c6 {[%clk 0:02:59]} 2. d4 {[%clk 0:02:58]}  d5 {[%clk 0:03:00]} 3. f3 {[%clk 0:02:59]}  dxe4 {[%clk 0:02:59]} 4. fxe4 {[%clk 0:03:00]}  e5 {[%clk 0:03:00]} 5. Nf3 {[%clk 0:03:00]}  Bg4 {[%clk 0:03:01]} 6. Bc4 {[%clk 0:02:54]}  Nd7 {[%clk 0:03:01]} 7. O-O {[%clk 0:02:46]}  Ngf6 {[%clk 0:03:00]} 8. Bg5 {[%clk 0:02:05]}  Be7 {[%clk 0:02:52]} 9. Nc3 {[%clk 0:01:34]}  O-O {[%clk 0:02:52]} 10. dxe5 {[%clk 0:01:23]}  Bxf3 {[%clk 0:02:46]} 11. exf6 {[%clk 0:01:03]}  Bxd1 {[%clk 0:02:46]} 12. fxe7 {[%clk 0:01:02]}  Qb6+ {[%clk 0:02:44]} 13. Kh1 {[%clk 0:01:01]}  Ne5 {[%clk 0:02:20]} 14. exf8=Q+ {[%clk 0:00:55]}  Rxf8 {[%clk 0:02:18]} 15. Raxd1 {[%clk 0:00:55]}  Nxc4 {[%clk 0:02:18]} 16. b3 {[%clk 0:00:51]}  Ne5 {[%clk 0:02:06]} 17. h3 {[%clk 0:00:40]}  f6 {[%clk 0:02:06]} 18. Bf4 {[%clk 0:00:38]}  Rd8 {[%clk 0:02:07]} 19. Bxe5 {[%clk 0:00:34]}  fxe5 {[%clk 0:02:05]} 20. Rde1 {[%clk 0:00:28]}  Qc5 {[%clk 0:02:05]} 21. Rf3 {[%clk 0:00:27]}  Rf8 {[%clk 0:02:02]} 22. Ref1 {[%clk 0:00:23]}  Rxf3 {[%clk 0:02:01]} 23. Rxf3 {[%clk 0:00:24]}  b5 {[%clk 0:01:58]} 24. Rd3 {[%clk 0:00:16]}  h6 {[%clk 0:01:55]} 25. Rf3 {[%clk 0:00:12]}  b4 {[%clk 0:01:52]} 26. Nd1 {[%clk 0:00:06]}  Qxc2 {[%clk 0:01:48]} 27. Ne3 {[%clk 0:00:07]}  Qxe4 {[%clk 0:01:46]} 28. Nc4 {[%clk 0:00:08]}  Qe1+ {[%clk 0:01:39]} 29. Kh2 {[%clk 0:00:08]}  Qe4 {[%clk 0:01:30]} 30. Re3 {[%clk 0:00:07]}  Qf4+ {[%clk 0:01:30]} 31. Kh1 {[%clk 0:00:06]}  e4 {[%clk 0:01:28]} 32. g3 {[%clk 0:00:05]}  Qf1+ {[%clk 0:01:27]} 33. Kh2 {[%clk 0:00:06]}  Qf2+ {[%clk 0:01:26]} 34. Kh1 {[%clk 0:00:06]}  Qc2 {[%clk 0:01:25]} 35. Kg1 {[%clk 0:00:05]}  Qxa2 {[%clk 0:01:19]} 36. Rxe4 {[%clk 0:00:04]} 0-1


[Site "https://www.chess.com"]

[Event "Titled Tuesday Blitz September 27 Early 2022"]
[White "Babazada, Khazar"]
[Black "Hardaway, Brewington"]
[WhiteFideId "13413554"]
[BlackFideId "30941849"]
[WhiteElo "2409"]
[BlackElo "1813"]
[Result "1-0"]
[Round "07"]
[TimeControl "180+1"]
[Date "2022.09.27"]
[WhiteClock "0:00:19"]
[BlackClock "0:00:03"]

1. Nf3 {[%clk 0:03:00]}  Nf6 {[%clk 0:02:53]} 2. g3 {[%clk 0:02:59]}  e6 {[%clk 0:02:54]} 3. Bg2 {[%clk 0:03:00]}  d5 {[%clk 0:02:54]} 4. O-O {[%clk 0:03:01]}  Bd6 {[%clk 0:02:54]} 5. b3 {[%clk 0:03:01]}  O-O {[%clk 0:02:54]} 6. Bb2 {[%clk 0:03:02]}  c5 {[%clk 0:02:55]} 7. d3 {[%clk 0:03:03]}  Nc6 {[%clk 0:02:55]} 8. Nbd2 {[%clk 0:03:04]}  Qc7 {[%clk 0:02:49]} 9. e4 {[%clk 0:03:04]}  dxe4 {[%clk 0:02:46]} 10. dxe4 {[%clk 0:03:05]}  Rd8 {[%clk 0:02:46]} 11. Qe2 {[%clk 0:03:05]}  e5 {[%clk 0:02:43]} 12. Nc4 {[%clk 0:02:52]}  Bg4 {[%clk 0:02:41]} 13. h3 {[%clk 0:02:53]}  Bxf3 {[%clk 0:02:41]} 14. Qxf3 {[%clk 0:02:54]}  Nd4 {[%clk 0:02:39]} 15. Qd3 {[%clk 0:02:54]}  b5 {[%clk 0:02:21]} 16. Ne3 {[%clk 0:02:43]}  Rac8 {[%clk 0:02:06]} 17. c3 {[%clk 0:02:19]}  Ne6 {[%clk 0:01:34]} 18. Qxb5 {[%clk 0:02:15]}  Ng5 {[%clk 0:01:26]} 19. Qc4 {[%clk 0:02:05]}  Bf8 {[%clk 0:01:21]} 20. Rad1 {[%clk 0:01:51]}  Qc6 {[%clk 0:01:10]} 21. Nd5 {[%clk 0:01:41]}  Ne8 {[%clk 0:01:07]} 22. h4 {[%clk 0:01:38]}  Ne6 {[%clk 0:01:07]} 23. Qe2 {[%clk 0:01:28]}  c4 {[%clk 0:01:04]} 24. b4 {[%clk 0:01:28]}  Qa4 {[%clk 0:01:01]} 25. Bc1 {[%clk 0:01:28]}  a5 {[%clk 0:00:59]} 26. a3 {[%clk 0:01:25]}  Qb3 {[%clk 0:00:48]} 27. Bh3 {[%clk 0:01:21]}  Rd6 {[%clk 0:00:40]} 28. Qb2 {[%clk 0:01:00]}  Qa4 {[%clk 0:00:35]} 29. Ne3 {[%clk 0:00:56]}  Rb6 {[%clk 0:00:32]} 30. Qe2 {[%clk 0:00:55]}  axb4 {[%clk 0:00:31]} 31. axb4 {[%clk 0:00:55]}  Qb3 {[%clk 0:00:29]} 32. Qc2 {[%clk 0:00:55]}  Ra8 {[%clk 0:00:19]} 33. Qxb3 {[%clk 0:00:48]}  cxb3 {[%clk 0:00:20]} 34. Rd2 {[%clk 0:00:49]}  Rc6 {[%clk 0:00:18]} 35. Nd5 {[%clk 0:00:48]}  N6c7 {[%clk 0:00:17]} 36. Bb2 {[%clk 0:00:41]}  Nb5 {[%clk 0:00:17]} 37. Rc1 {[%clk 0:00:37]}  Ned6 {[%clk 0:00:16]} 38. Bf1 {[%clk 0:00:38]}  Nc4 {[%clk 0:00:16]} 39. Bxc4 {[%clk 0:00:38]}  Rxc4 {[%clk 0:00:17]} 40. Nb6 {[%clk 0:00:39]}  Rac8 {[%clk 0:00:13]} 41. Nxc8 {[%clk 0:00:39]}  Rxc8 {[%clk 0:00:13]} 42. c4 {[%clk 0:00:40]}  Nd6 {[%clk 0:00:13]} 43. c5 {[%clk 0:00:39]}  Nxe4 {[%clk 0:00:14]} 44. Rd3 {[%clk 0:00:39]}  Rb8 {[%clk 0:00:14]} 45. c6 {[%clk 0:00:34]}  Bd6 {[%clk 0:00:12]} 46. c7 {[%clk 0:00:29]}  Rc8 {[%clk 0:00:10]} 47. Bxe5 {[%clk 0:00:30]}  b2 {[%clk 0:00:07]} 48. Bxb2 {[%clk 0:00:28]}  Bxc7 {[%clk 0:00:07]} 49. Be5 {[%clk 0:00:25]}  f6 {[%clk 0:00:04]} 50. Rxc7 {[%clk 0:00:24]}  Ra8 {[%clk 0:00:05]} 51. Bf4 {[%clk 0:00:22]}  h5 {[%clk 0:00:06]} 52. Rdd7 {[%clk 0:00:21]}  Ra1+ {[%clk 0:00:05]} 53. Kg2 {[%clk 0:00:21]}  Ra2 {[%clk 0:00:05]} 54. Rxg7+ {[%clk 0:00:20]}  Kh8 {[%clk 0:00:05]} 55. Be3 {[%clk 0:00:20]}  f5 {[%clk 0:00:04]} 56. Rg6 {[%clk 0:00:18]}  f4 {[%clk 0:00:03]} 57. Bd4+ {[%clk 0:00:18]}  Nf6 {[%clk 0:00:03]} 58. Bxf6# {[%clk 0:00:19]} 1-0


[Site "https://www.chess.com"]

[Event "Titled Tuesday Blitz September 27 Early 2022"]
[White "Balkum, Alexander"]
[Black "Riehle, Marco"]
[WhiteFideId "2005069"]
[BlackFideId "12904392"]
[WhiteElo "2386"]
[BlackElo "2462"]
[Result "0-1"]
[Round "07"]
[TimeControl "180+1"]
[Date "2022.09.27"]
[WhiteClock "0:00:44"]
[BlackClock "0:02:14"]

1. e4 {[%clk 0:03:00]}  e5 {[%clk 0:02:57]} 2. Nf3 {[%clk 0:03:00]}  Nf6 {[%clk 0:02:56]} 3. Nxe5 {[%clk 0:03:00]}  Nxe4 {[%clk 0:02:55]} 4. Qe2 {[%clk 0:02:58]}  Qe7 {[%clk 0:02:45]} 5. Qxe4 {[%clk 0:02:58]}  d6 {[%clk 0:02:41]} 6. d4 {[%clk 0:02:57]}  dxe5 {[%clk 0:02:41]} 7. dxe5 {[%clk 0:02:53]}  Nc6 {[%clk 0:02:41]} 8. Bf4 {[%clk 0:02:27]}  g5 {[%clk 0:02:39]} 9. Be3 {[%clk 0:02:11]}  f5 {[%clk 0:02:38]} 10. Qa4 {[%clk 0:01:45]}  f4 {[%clk 0:02:36]} 11. Be2 {[%clk 0:01:22]}  fxe3 {[%clk 0:02:28]} 12. Bh5+ {[%clk 0:01:21]}  Kd8 {[%clk 0:02:28]} 13. O-O {[%clk 0:01:19]}  Bd7 {[%clk 0:02:29]} 14. fxe3 {[%clk 0:01:08]}  Qxe5 {[%clk 0:02:27]} 15. Nc3 {[%clk 0:01:02]}  Bd6 {[%clk 0:02:26]} 16. g3 {[%clk 0:00:57]}  Qxe3+ {[%clk 0:02:25]} 17. Kh1 {[%clk 0:00:56]}  Nd4 {[%clk 0:02:25]} 18. Qc4 {[%clk 0:00:47]}  Bc6+ {[%clk 0:02:20]} 19. Nd5 {[%clk 0:00:44]}  Qe5 {[%clk 0:02:14]} 0-1


[Site "https://www.chess.com"]

[Event "Titled Tuesday Blitz September 27 Early 2022"]
[White "Barria Zuniga, Daniel"]
[Black "Bharath Subramaniyam H"]
[WhiteFideId "3400816"]
[BlackFideId "46634827"]
[WhiteElo "2652"]
[BlackElo "2796"]
[Result "0-1"]
[Round "07"]
[TimeControl "180+1"]
[Date "2022.09.27"]
[WhiteClock "0:01:42"]
[BlackClock "0:02:04"]

1. d4 {[%clk 0:03:00]}  Nf6 {[%clk 0:02:56]} 2. c4 {[%clk 0:03:01]}  b6 {[%clk 0:02:56]} 3. Nf3 {[%clk 0:02:57]}  Bb7 {[%clk 0:02:57]} 4. g3 {[%clk 0:02:57]}  g6 {[%clk 0:02:55]} 5. Bg2 {[%clk 0:02:57]}  Bg7 {[%clk 0:02:56]} 6. Nc3 {[%clk 0:02:56]}  O-O {[%clk 0:02:55]} 7. Qc2 {[%clk 0:02:55]}  d5 {[%clk 0:02:54]} 8. Ne5 {[%clk 0:02:50]}  Nbd7 {[%clk 0:02:48]} 9. O-O {[%clk 0:02:42]}  c5 {[%clk 0:02:45]} 10. Nxd7 {[%clk 0:02:28]}  Qxd7 {[%clk 0:02:42]} 11. dxc5 {[%clk 0:02:27]}  d4 {[%clk 0:02:38]} 12. Bxb7 {[%clk 0:02:17]}  Qxb7 {[%clk 0:02:39]} 13. Na4 {[%clk 0:02:16]}  Qc6 {[%clk 0:02:34]} 14. b3 {[%clk 0:02:01]}  bxc5 {[%clk 0:02:24]} 15. Ba3 {[%clk 0:02:01]}  Nd7 {[%clk 0:02:21]} 16. Rad1 {[%clk 0:01:59]}  e5 {[%clk 0:02:18]} 17. e3 {[%clk 0:01:58]}  Rfe8 {[%clk 0:02:12]} 18. Rfe1 {[%clk 0:01:56]}  e4 {[%clk 0:02:11]} 19. exd4 {[%clk 0:01:48]}  cxd4 {[%clk 0:02:12]} 20. Bb2 {[%clk 0:01:42]}  Ne5 {[%clk 0:02:04]} 0-1


[Site "https://www.chess.com"]

[Event "Titled Tuesday Blitz September 27 Early 2022"]
[White "Begmuratov, Khumoyun"]
[Black "Jaskolka, Tomasz"]
[WhiteFideId "14210207"]
[BlackFideId "1170791"]
[WhiteElo "1978"]
[BlackElo "2073"]
[Result "1-0"]
[Round "07"]
[TimeControl "180+1"]
[Date "2022.09.27"]
[WhiteClock "0:01:41"]
[BlackClock "0:00:47"]

1. e4 {[%clk 0:03:00]}  c5 {[%clk 0:02:59]} 2. Nf3 {[%clk 0:02:59]}  e6 {[%clk 0:03:00]} 3. d3 {[%clk 0:02:54]}  d5 {[%clk 0:02:51]} 4. Nbd2 {[%clk 0:02:54]}  Nc6 {[%clk 0:02:48]} 5. g3 {[%clk 0:02:53]}  g6 {[%clk 0:02:49]} 6. Bg2 {[%clk 0:02:51]}  Bg7 {[%clk 0:02:50]} 7. O-O {[%clk 0:02:51]}  Nge7 {[%clk 0:02:50]} 8. Re1 {[%clk 0:02:51]}  b6 {[%clk 0:02:51]} 9. Nf1 {[%clk 0:02:50]}  a5 {[%clk 0:02:51]} 10. e5 {[%clk 0:02:51]}  a4 {[%clk 0:02:49]} 11. h4 {[%clk 0:02:50]}  Qc7 {[%clk 0:02:46]} 12. Bf4 {[%clk 0:02:50]}  h6 {[%clk 0:02:45]} 13. N1h2 {[%clk 0:02:49]}  g5 {[%clk 0:02:42]} 14. hxg5 {[%clk 0:02:49]}  hxg5 {[%clk 0:02:42]} 15. Nxg5 {[%clk 0:02:34]}  Bxe5 {[%clk 0:02:41]} 16. Bxe5 {[%clk 0:02:34]}  Nxe5 {[%clk 0:02:42]} 17. Qe2 {[%clk 0:02:35]}  N5c6 {[%clk 0:02:27]} 18. Ng4 {[%clk 0:02:33]}  Kf8 {[%clk 0:02:10]} 19. Qf3 {[%clk 0:02:22]}  Ng6 {[%clk 0:01:51]} 20. Rxe6 {[%clk 0:02:07]}  Nd4 {[%clk 0:01:48]} 21. Qxd5 {[%clk 0:02:02]}  Nxe6 {[%clk 0:01:42]} 22. Nxe6+ {[%clk 0:01:57]}  Bxe6 {[%clk 0:01:40]} 23. Qxa8+ {[%clk 0:01:57]}  Kg7 {[%clk 0:01:41]} 24. Qxa4 {[%clk 0:01:55]}  b5 {[%clk 0:01:33]} 25. Qe4 {[%clk 0:01:54]}  c4 {[%clk 0:01:02]} 26. Qd4+ {[%clk 0:01:53]}  Kf8 {[%clk 0:00:58]} 27. Re1 {[%clk 0:01:52]}  cxd3 {[%clk 0:00:56]} 28. cxd3 {[%clk 0:01:52]}  Bxg4 {[%clk 0:00:54]} 29. Qxg4 {[%clk 0:01:51]}  Qc2 {[%clk 0:00:55]} 30. Qb4+ {[%clk 0:01:50]}  Kg7 {[%clk 0:00:54]} 31. Qc3+ {[%clk 0:01:48]}  Qxc3 {[%clk 0:00:54]} 32. bxc3 {[%clk 0:01:49]}  Rc8 {[%clk 0:00:53]} 33. Rc1 {[%clk 0:01:47]}  Ne5 {[%clk 0:00:53]} 34. d4 {[%clk 0:01:45]}  Nd3 {[%clk 0:00:53]} 35. Rc2 {[%clk 0:01:45]}  Ne1 {[%clk 0:00:48]} 36. Rb2 {[%clk 0:01:45]}  Rxc3 {[%clk 0:00:47]} 37. Rxb5 {[%clk 0:01:44]}  Rc1 {[%clk 0:00:47]} 38. Kh2 {[%clk 0:01:42]}  Rc2 {[%clk 0:00:47]} 39. Rf5 {[%clk 0:01:41]}  Nxg2 {[%clk 0:00:44]} 40. Kxg2 {[%clk 0:01:41]}  Rxa2 {[%clk 0:00:44]} 41. Rf4 {[%clk 0:01:41]}  Rd2 {[%clk 0:00:45]} 42. Kf3 {[%clk 0:01:40]}  Kg6 {[%clk 0:00:45]} 43. Ke4 {[%clk 0:01:41]}  Re2+ {[%clk 0:00:43]} 44. Kd5 {[%clk 0:01:41]}  f5 {[%clk 0:00:44]} 45. Kc6 {[%clk 0:01:40]}  Kf6 {[%clk 0:00:44]} 46. d5 {[%clk 0:01:41]}  Ke5 {[%clk 0:00:45]} 47. d6 {[%clk 0:01:35]}  Rc2+ {[%clk 0:00:45]} 48. Kd7 {[%clk 0:01:35]}  Rd2 {[%clk 0:00:46]} 49. Ke7 {[%clk 0:01:35]}  Rxd6 {[%clk 0:00:39]} 50. Rxf5+ {[%clk 0:01:35]}  Kxf5 {[%clk 0:00:40]} 51. Kxd6 {[%clk 0:01:35]}  Kg4 {[%clk 0:00:41]} 52. f4 {[%clk 0:01:36]}  Kf3 {[%clk 0:00:42]} 53. f5 {[%clk 0:01:36]}  Kg4 {[%clk 0:00:43]} 54. f6 {[%clk 0:01:37]}  Kg5 {[%clk 0:00:43]} 55. f7 {[%clk 0:01:38]}  Kg6 {[%clk 0:00:44]} 56. f8=Q {[%clk 0:01:38]}  Kh7 {[%clk 0:00:45]} 57. Qf6 {[%clk 0:01:38]}  Kg8 {[%clk 0:00:44]} 58. Qe7 {[%clk 0:01:39]}  Kh8 {[%clk 0:00:45]} 59. Ke6 {[%clk 0:01:40]}  Kg8 {[%clk 0:00:46]} 60. Kf6 {[%clk 0:01:41]}  Kh8 {[%clk 0:00:47]} 1-0


[Site "https://www.chess.com"]

[Event "Titled Tuesday Blitz September 27 Early 2022"]
[White "Brodowski, Piotr"]
[Black "Rostovtsev, Dmitry"]
[WhiteFideId "1124480"]
[BlackFideId "34278320"]
[WhiteElo "2631"]
[BlackElo "2752"]
[Result "1/2-1/2"]
[Round "07"]
[TimeControl "180+1"]
[Date "2022.09.27"]
[WhiteClock "0:00:10"]
[BlackClock "0:00:10"]

1. Nf3 {[%clk 0:03:00]}  Nf6 {[%clk 0:02:58]} 2. c4 {[%clk 0:02:54]}  e6 {[%clk 0:02:57]} 3. e3 {[%clk 0:02:51]}  d5 {[%clk 0:02:56]} 4. b3 {[%clk 0:02:51]}  c5 {[%clk 0:02:51]} 5. Bb2 {[%clk 0:02:52]}  Nc6 {[%clk 0:02:52]} 6. cxd5 {[%clk 0:02:51]}  exd5 {[%clk 0:02:51]} 7. d4 {[%clk 0:02:44]}  cxd4 {[%clk 0:02:37]} 8. Nxd4 {[%clk 0:02:44]}  Bb4+ {[%clk 0:02:37]} 9. Bc3 {[%clk 0:02:44]}  Bd6 {[%clk 0:02:31]} 10. Nd2 {[%clk 0:02:38]}  O-O {[%clk 0:02:31]} 11. N2f3 {[%clk 0:02:38]}  Bg4 {[%clk 0:02:30]} 12. Bd3 {[%clk 0:02:31]}  Ne4 {[%clk 0:02:29]} 13. Bxe4 {[%clk 0:02:05]}  dxe4 {[%clk 0:02:25]} 14. Nxc6 {[%clk 0:02:06]}  bxc6 {[%clk 0:02:18]} 15. Qd4 {[%clk 0:02:05]}  Qf6 {[%clk 0:02:00]} 16. Qxf6 {[%clk 0:02:02]}  gxf6 {[%clk 0:02:01]} 17. Nd2 {[%clk 0:01:59]}  f5 {[%clk 0:01:54]} 18. f3 {[%clk 0:01:35]}  exf3 {[%clk 0:01:54]} 19. gxf3 {[%clk 0:01:34]}  Bh5 {[%clk 0:01:54]} 20. Rg1+ {[%clk 0:01:29]}  Bg6 {[%clk 0:01:54]} 21. h4 {[%clk 0:01:15]}  h5 {[%clk 0:01:52]} 22. Kf2 {[%clk 0:01:08]}  f4 {[%clk 0:01:47]} 23. Ne4 {[%clk 0:01:00]}  fxe3+ {[%clk 0:01:47]} 24. Kxe3 {[%clk 0:00:59]}  Rfe8 {[%clk 0:01:45]} 25. Kf2 {[%clk 0:00:58]}  Rxe4 {[%clk 0:01:32]} 26. fxe4 {[%clk 0:00:58]}  Bc5+ {[%clk 0:01:32]} 27. Kf3 {[%clk 0:00:53]}  Bxg1 {[%clk 0:01:33]} 28. Rxg1 {[%clk 0:00:53]}  Rd8 {[%clk 0:01:34]} 29. Ke3 {[%clk 0:00:53]}  Kf8 {[%clk 0:01:32]} 30. Bf6 {[%clk 0:00:49]}  Rd6 {[%clk 0:01:27]} 31. Bd4 {[%clk 0:00:48]}  Rd7 {[%clk 0:01:26]} 32. Rc1 {[%clk 0:00:47]}  Rc7 {[%clk 0:01:26]} 33. Be5 {[%clk 0:00:45]}  Rc8 {[%clk 0:01:23]} 34. Rd1 {[%clk 0:00:44]}  Re8 {[%clk 0:01:17]} 35. Bd6+ {[%clk 0:00:44]}  Kg7 {[%clk 0:01:15]} 36. e5 {[%clk 0:00:44]}  Bf5 {[%clk 0:01:13]} 37. Rg1+ {[%clk 0:00:42]}  Bg4 {[%clk 0:01:10]} 38. Kd4 {[%clk 0:00:42]}  f6 {[%clk 0:01:10]} 39. exf6+ {[%clk 0:00:39]}  Kxf6 {[%clk 0:01:11]} 40. Kc5 {[%clk 0:00:39]}  Re2 {[%clk 0:01:11]} 41. a4 {[%clk 0:00:32]}  Rc2+ {[%clk 0:01:09]} 42. Kb4 {[%clk 0:00:32]}  Ke6 {[%clk 0:01:06]} 43. Bb8 {[%clk 0:00:28]}  a6 {[%clk 0:01:03]} 44. Ka5 {[%clk 0:00:28]}  Be2 {[%clk 0:01:00]} 45. Rg6+ {[%clk 0:00:25]}  Kd5 {[%clk 0:00:58]} 46. Ba7 {[%clk 0:00:24]}  Rb2 {[%clk 0:00:53]} 47. b4 {[%clk 0:00:24]}  Ra2 {[%clk 0:00:54]} 48. Rg5+ {[%clk 0:00:20]}  Ke6 {[%clk 0:00:51]} 49. Bc5 {[%clk 0:00:20]}  Bd1 {[%clk 0:00:49]} 50. Kb6 {[%clk 0:00:20]}  Rxa4 {[%clk 0:00:27]} 51. Kxc6 {[%clk 0:00:18]}  Ra2 {[%clk 0:00:25]} 52. Rg1 {[%clk 0:00:17]}  Bf3+ {[%clk 0:00:24]} 53. Kb6 {[%clk 0:00:18]}  Be2 {[%clk 0:00:23]} 54. Rg8 {[%clk 0:00:16]}  Rc2 {[%clk 0:00:20]} 55. Re8+ {[%clk 0:00:16]}  Kf5 {[%clk 0:00:19]} 56. Rg8 {[%clk 0:00:15]}  Rc4 {[%clk 0:00:16]} 57. Be7 {[%clk 0:00:13]}  Re4 {[%clk 0:00:14]} 58. Rg7 {[%clk 0:00:14]}  Bd3 {[%clk 0:00:10]} 59. Ka7 {[%clk 0:00:13]}  Be2 {[%clk 0:00:10]} 60. Kb6 {[%clk 0:00:13]}  Re6+ {[%clk 0:00:09]} 61. Ka7 {[%clk 0:00:13]}  Rg6 {[%clk 0:00:04]} 62. Rh7 {[%clk 0:00:11]}  Kg4 {[%clk 0:00:04]} 63. Bg5 {[%clk 0:00:11]}  Bd3 {[%clk 0:00:04]} 64. Rd7 {[%clk 0:00:11]}  Bb5 {[%clk 0:00:04]} 65. Rd4+ {[%clk 0:00:11]}  Kg3 {[%clk 0:00:04]} 66. Re4 {[%clk 0:00:10]}  Rc6 {[%clk 0:00:04]} 67. Kb7 {[%clk 0:00:10]}  Rc4 {[%clk 0:00:03]} 68. Rxc4 {[%clk 0:00:09]}  Bxc4 {[%clk 0:00:04]} 69. Kb6 {[%clk 0:00:09]}  Bb5 {[%clk 0:00:05]} 70. Kc5 {[%clk 0:00:10]}  Kg4 {[%clk 0:00:05]} 71. Kd4 {[%clk 0:00:10]}  Kf5 {[%clk 0:00:06]} 72. Kc5 {[%clk 0:00:10]}  Ke4 {[%clk 0:00:07]} 73. Kd6 {[%clk 0:00:11]}  Kd4 {[%clk 0:00:07]} 74. Be7 {[%clk 0:00:11]}  Kc4 {[%clk 0:00:08]} 75. Ke6 {[%clk 0:00:11]}  Be8 {[%clk 0:00:08]} 76. Kf6 {[%clk 0:00:12]}  Bd7 {[%clk 0:00:08]} 77. Kg6 {[%clk 0:00:12]}  Bg4 {[%clk 0:00:09]} 78. Kg5 {[%clk 0:00:13]}  Kb5 {[%clk 0:00:09]} 79. Bf8 {[%clk 0:00:13]}  Kc6 {[%clk 0:00:09]} 80. Be7 {[%clk 0:00:13]}  Kd5 {[%clk 0:00:09]} 81. Bf8 {[%clk 0:00:10]}  Ke6 {[%clk 0:00:09]} 82. Bc5 {[%clk 0:00:10]}  Kd5 {[%clk 0:00:10]} 83. Bf8 {[%clk 0:00:11]}  Kc4 {[%clk 0:00:10]} 84. Be7 {[%clk 0:00:11]}  Kd3 {[%clk 0:00:10]} 85. Bf8 {[%clk 0:00:11]}  Ke4 {[%clk 0:00:10]} 86. Be7 {[%clk 0:00:09]}  Kd5 {[%clk 0:00:10]} 87. Bf8 {[%clk 0:00:10]} 1/2-1/2


[Site "https://www.chess.com"]